fUST/lending_fUST_20250725
["ID","MTS","AMOUNT","RATE_DAILY","PERIOD"]
[374637427,1753391450678,-24.31689695,0.0002,2]
[374637428,1753391450687,-460.0,0.0002,2]
[374637429,1753391450696,-460.0,0.0002,2]
[374637430,1753391450707,-349.6591925,0.0002,2]
[374637431,1753391450716,-1464.53,0.0002,2]
[374637432,1753391450726,-505.06,0.0002,2]
[374637433,1753391450736,-460.0,0.0002,2]
[374637434,1753391450745,-460.0,0.0002,2]
[374637435,1753391450754,-460.0,0.0002,2]
[374637436,1753391450764,-588.61,0.0002,2]
[374637437,1753391450775,-377.76657383,0.0002,2]
[374637438,1753391450787,-290.89342617,0.0002,2]
[374637439,1753391450797,-460.0,0.0002,2]
[374637440,1753391450806,-460.0,0.0002,2]
[374637441,1753391450817,-460.0,0.0002,2]
[374637442,1753391450827,-460.0,0.0002,2]
[374637443,1753391450837,-460.0,0.0002,2]
[374637444,1753391450847,-460.0,0.0002,2]
[374637445,1753391450856,-151.0,0.0002,2]
[374637446,1753391450866,-453.66946866,0.0002,2]
[374637447,1753391450875,-460.0,0.0002,2]
[374637448,1753391450884,-460.0,0.0002,2]
[374637449,1753391450894,-460.0,0.0002,2]
[374637450,1753391450904,-460.0,0.0002,2]
[374637451,1753391450913,-814.1,0.0002,2]
[374637452,1753391450922,-460.0,0.0002,2]
[374637453,1753391450932,-460.0,0.0002,2]
[374637454,1753391450942,-460.0,0.0002,2]
[374637455,1753391450953,-460.0,0.0002,2]
[374637456,1753391450963,-460.0,0.0002,2]
[374637457,1753391450973,-151.0,0.0002,2]
[374637458,1753391450983,-1203.24,0.0002,2]
[374637459,1753391450993,-460.0,0.0002,2]
[374637460,1753391451003,-460.0,0.0002,2]
[374637461,1753391451012,-477.87,0.0002,2]
[374637462,1753391451023,-460.0,0.0002,2]
[374637463,1753391451032,-480.4,0.0002,2]
[374637464,1753391451042,-314.60891328,0.0002,2]
[374637465,1753391451052,-460.0,0.0002,2]
[374637466,1753391451062,-151.0,0.0002,2]
[374637467,1753391451072,-460.0,0.0002,2]
[374637468,1753391451082,-460.0,0.0002,2]
[374637469,1753391451092,-151.0,0.0002,2]
[374637470,1753391451102,-582.47,0.0002,2]
[374637471,1753391451113,-151.0,0.0002,2]
[374637472,1753391451122,-460.0,0.0002,2]
[374637473,1753391451132,-511.09,0.0002,2]
[374637474,1753391451142,-460.0,0.0002,2]
[374637475,1753391451152,-229.025071,0.0002,2]
[374637476,1753391451161,-460.0,0.0002,2]
[374637477,1753391451170,-460.0,0.0002,2]
[374637478,1753391451180,-376.920161,0.0002,2]
[374637479,1753391451189,-460.0,0.0002,2]
[374637480,1753391451199,-151.0,0.0002,2]
[374637481,1753391451208,-751.55,0.0002,2]
[374637482,1753391451218,-460.0,0.0002,2]
[374637483,1753391451227,-460.0,0.0002,2]
[374637484,1753391451237,-151.0,0.0002,2]
[374637485,1753391451246,-519.93,0.0002,2]
[374637486,1753391451256,-460.0,0.0002,2]
[374637487,1753391451266,-460.0,0.0002,2]
[374637488,1753391451278,-222.25628478,0.0002,2]
[374637489,1753391451290,-237.74371522,0.0002,2]
[374637490,1753391451300,-460.0,0.0002,2]
[374637491,1753391451309,-460.0,0.0002,2]
[374637492,1753391451319,-460.0,0.0002,2]
[374637493,1753391451328,-460.0,0.0002,2]
[374637494,1753391451338,-460.0,0.0002,2]
[374637495,1753391451347,-151.0,0.0002,2]
[374637496,1753391451356,-415.74493917,0.0002,2]
[374637497,1753391451366,-151.0,0.0002,2]
[374637498,1753391451375,-154.995586,0.0002,2]
[374637499,1753391451385,-460.0,0.0002,2]
[374637500,1753391451395,-154.995586,0.0002,2]
[374637501,1753391451405,-460.0,0.0002,2]
[374637502,1753391451414,-460.0,0.0002,2]
[374637503,1753391451423,-800.15,0.0002,2]
[374637504,1753391451433,-1011.87,0.0002,2]
[374637505,1753391451444,-460.0,0.0002,2]
[374637506,1753391451453,-151.0,0.0002,2]
[374637507,1753391451463,-275.608545,0.0002,2]
[374637508,1753391451473,-539.638431,0.0002,2]
[374637509,1753391451484,-275.608545,0.0002,2]
[374637510,1753391451494,-758.05,0.0002,2]
[374637511,1753391451504,-539.638431,0.0002,2]
[374637512,1753391451514,-460.0,0.0002,2]
[374637513,1753391451524,-1478.25,0.0002,2]
[374637514,1753391451534,-460.0,0.0002,2]
[374637515,1753391451544,-151.0,0.0002,2]
[374637516,1753391451553,-151.0,0.0002,2]
[374637517,1753391451563,-889.01,0.0002,2]
[374637518,1753391451573,-189.571769,0.0002,2]
[374637519,1753391451583,-151.0,0.0002,2]
[374637520,1753391451592,-189.571769,0.0002,2]
[374637521,1753391451602,-151.0,0.0002,2]
[374637522,1753391451612,-460.0,0.0002,2]
[374637523,1753391451621,-460.0,0.0002,2]
[374637524,1753391451633,-2167.5,0.0002,2]
[374637525,1753391451643,-460.0,0.0002,2]
[374637526,1753391451653,-460.0,0.0002,2]
[374637527,1753391451663,-355.30195347,0.0002,2]
[374637528,1753391451675,-3029.47,0.0002,2]
[374637529,1753391451686,-460.0,0.0002,2]
[374637530,1753391451696,-460.0,0.0002,2]
[374637531,1753391451706,-733.79,0.0002,2]
[374637532,1753391451717,-460.0,0.0002,2]
[374637533,1753391451726,-460.0,0.0002,2]
[374637534,1753391451737,-524.72,0.0002,2]
[374637535,1753391451746,-478.85768669,0.0002,2]
[374637536,1753391451759,-483.22231331,0.0002,2]
[374637537,1753391451768,-478.66,0.0002,2]
[374637538,1753391451781,-2178.62,0.0002,2]
[374637539,1753391451791,-151.0,0.0002,2]
[374637540,1753391451800,-151.0,0.0002,2]
[374637541,1753391451810,-151.0,0.0002,2]
[374637542,1753391451820,-1450.26488469,0.0002,2]
[374637543,1753391451831,-828.36511531,0.0002,2]
[374637544,1753391451841,-460.0,0.0002,2]
[374637545,1753391451851,-1990.71,0.0002,2]
[374637546,1753391451860,-460.0,0.0002,2]
[374637547,1753391451871,-495.13,0.0002,2]
[374637548,1753391451880,-151.0,0.0002,2]
[374637549,1753391451889,-937.43,0.0002,2]
[374637550,1753391451900,-460.0,0.0002,2]
[374637551,1753391451909,-1939.18,0.0002,2]
[374637552,1753391451919,-460.0,0.0002,2]
[374637553,1753391451929,-1099.5,0.0002,2]
[374637554,1753391451939,-753.09,0.0002,2]
[374637555,1753391451949,-151.0,0.0002,2]
[374637556,1753391451959,-460.0,0.0002,2]
[374637557,1753391451969,-1060.93,0.0002,2]
[374637558,1753391451979,-464.70089885,0.0002,2]
[374637559,1753391451988,-460.0,0.0002,2]
[374637560,1753391451998,-1235.85,0.0002,2]
[374637561,1753391452007,-1001.77,0.0002,2]
[374637562,1753391452020,-151.0,0.0002,2]
[374637563,1753391452040,-180.827933,0.0002,2]
[374637564,1753391452060,-3240.25,0.0002,2]
[374637565,1753391452079,-460.0,0.0002,2]
[374637566,1753391452095,-460.0,0.0002,2]
[374637567,1753391452206,-565.89,0.0002,2]
[374637568,1753391452216,-968.55,0.0002,2]
[374637569,1753391452227,-736.84,0.0002,2]
[374637570,1753391452237,-406.90041642,0.0002,2]
[374637571,1753391452246,-704.64,0.0002,2]
[374637572,1753391452256,-460.0,0.0002,2]
[374637573,1753391452265,-460.0,0.0002,2]
[374637574,1753391452277,-460.0,0.0002,2]
[374637575,1753391452287,-460.0,0.0002,2]
[374637576,1753391452297,-460.0,0.0002,2]
[374637577,1753391452307,-151.0,0.0002,2]
[374637578,1753391452316,-669.74,0.0002,2]
[374637579,1753391452327,-876.65,0.0002,2]
[374637580,1753391452338,-460.0,0.0002,2]
[374637581,1753391452347,-820.48,0.0002,2]
[374637582,1753391452356,-1334.65999208,0.0002,2]
[374637583,1753391452369,-4357.23325014,0.0002,2]
[374637584,1753391452552,-429.7456075,0.000196,2]
[374637585,1753391452562,-469.64,0.00019726,2]
[374637586,1753391452573,-2073.80675778,0.0002,2]
[374637587,1753391452582,-151.0,0.0002,2]
[374637588,1753391452592,-655.02,0.0002,2]
[374637589,1753391452602,-532.5533407,0.0002,2]
[374637590,1753391452612,-2253.54,0.0002,2]
[374637591,1753391452623,-659.75,0.0002,2]
[374637592,1753391452640,-794.39,0.0002,2]
[374637593,1753391452651,-587.04,0.0002,2]
[374637594,1753391452661,-460.0,0.0002,2]
[374637595,1753391452674,-2537.27,0.0002,2]
[374637596,1753391452683,-460.0,0.0002,2]
[374637597,1753391452694,-460.0,0.0002,2]
[374637598,1753391452710,-151.0,0.0002,2]
[374637599,1753391452721,-460.0,0.0002,2]
[374637600,1753391452731,-460.0,0.0002,2]
[374637601,1753391452740,-971.59,0.0002,2]
[374637602,1753391452750,-1259.23,0.0002,2]
[374637603,1753391452759,-3157.21,0.0002,2]
[374637604,1753391452769,-460.0,0.0002,2]
[374637605,1753391452781,-151.0,0.0002,2]
[374637606,1753391452791,-70.2383916,0.0002,2]
[374637607,1753391452843,-389.7616084,0.0002,2]
[374637608,1753391452853,-460.0,0.0002,2]
[374637609,1753391452863,-1109.22,0.0002,2]
[374637610,1753391452872,-151.0,0.0002,2]
[374637611,1753391452881,-460.0,0.0002,2]
[374637612,1753391452891,-460.0,0.0002,2]
[374637613,1753391452900,-3057.5,0.0002,2]
[374637614,1753391452910,-643.19,0.0002,2]
[374637615,1753391452919,-496.37100594,0.0002,2]
[374637616,1753391452931,-449.59899406,0.0002,2]
[374637617,1753391452940,-460.0,0.0002,2]
[374637618,1753391452949,-573.72,0.0002,2]
[374637619,1753391452959,-2681.78,0.0002,2]
[374637620,1753391452968,-460.0,0.0002,2]
[374637621,1753391452977,-460.0,0.0002,2]
[374637622,1753391452986,-2336.18701719,0.0002,2]
[374637623,1753391453233,-460.0,0.00019178,2]
[374637624,1753391453243,-548.44298281,0.0002,2]
[374637625,1753391453253,-484.22923534,0.0002,2]
[374637626,1753391453263,-791.02,0.0002,2]
[374637627,1753391453272,-320.79712595,0.0002,2]
[374637628,1753391453284,-153.71562976,0.0002,2]
[374637629,1753391453798,-306.28437024,0.0002,2]
[374637630,1753391453809,-460.0,0.0002,2]
[374637631,1753391453819,-460.0,0.0002,2]
[374637632,1753391453829,-464.58,0.0002,2]
[374637633,1753391453838,-460.0,0.0002,2]
[374637634,1753391453848,-816.82,0.0002,2]
[374637635,1753391453858,-564.3,0.0002,2]
[374637636,1753391453868,-504.98,0.0002,2]
[374637637,1753391453878,-5720.52,0.0002,2]
[374637638,1753391453888,-1205.1,0.0002,2]
[374637639,1753391453898,-479.25,0.0002,2]
[374637640,1753391453908,-469.64,0.0002,2]
[374637641,1753391453917,-1755.42827286,0.00020008,2]
[374637642,1753391453927,-1000.0,0.00020021,2]
[374637643,1753391453937,-1000.0,0.00020021,2]
[374637644,1753391453946,-1000.0,0.00020021,2]
[374637645,1753391453956,-1000.0,0.00020021,2]
[374637646,1753391453966,-501.11210329,0.00020021,2]
[374637647,1753391453975,-151.0,0.00020033,2]
[374637648,1753391453987,-246.81665,0.00020033,2]
[374637649,1753391453996,-151.0,0.00020033,2]
[374637650,1753391454006,-151.0,0.00020033,2]
[374637651,1753391454016,-151.0,0.00020033,2]
[374637652,1753391454027,-151.0,0.00020033,2]
[374637653,1753391454036,-500.0,0.00020033,2]
[374637654,1753391454046,-151.0,0.00020033,2]
[374637655,1753391454056,-151.0,0.00020033,2]
[374637656,1753391454065,-215.0738,0.00020033,2]
[374637657,1753391454075,-500.0,0.00020033,2]
[374637658,1753391454085,-151.0,0.00020033,2]
[374637659,1753391454094,-151.0,0.00020033,2]
[374637660,1753391454104,-500.0,0.00020033,2]
[374637661,1753391454113,-151.0,0.00020033,2]
[374637662,1753391454123,-515.71519755,0.00020033,2]
[374637663,1753391454132,-151.0,0.00020033,2]
[374637664,1753391454142,-151.0,0.00020033,2]
[374637665,1753391454151,-151.0,0.00020033,2]
[374637666,1753391454160,-151.0,0.00020033,2]
[374637667,1753391454170,-151.0,0.00020033,2]
[374637668,1753391454179,-151.0,0.00020033,2]
[374637669,1753391454189,-151.0,0.00020033,2]
[374637670,1753391454199,-151.0,0.00020033,2]
[374637671,1753391454209,-151.0,0.00020033,2]
[374637672,1753391454218,-151.0,0.00020033,2]
[374637673,1753391454228,-199.88962101,0.00020033,2]
[374637674,1753391454237,-151.0,0.00020033,2]
[374637675,1753391454247,-151.0,0.00020033,2]
[374637676,1753391454256,-3801.642,0.00020033,2]
[374637677,1753391454267,-151.0,0.00020033,2]
[374637678,1753391454277,-151.0,0.00020033,2]
[374637679,1753391454286,-151.0,0.00020033,2]
[374637680,1753391454296,-151.0,0.00020033,2]
[374637681,1753391454306,-151.0,0.00020033,2]
[374637682,1753391454316,-151.0,0.00020033,2]
[374637683,1753391454326,-151.0,0.00020033,2]
[374637684,1753391454335,-151.0,0.00020033,2]
[374637685,1753391454346,-151.0,0.00020033,2]
[374637686,1753391454356,-151.0,0.00020033,2]
[374637687,1753391454367,-151.0,0.00020033,2]
[374637688,1753391454376,-151.0,0.00020033,2]
[374637689,1753391454386,-151.0,0.00020033,2]
[374637690,1753391454395,-151.0,0.00020033,2]
[374637691,1753391454405,-151.0,0.00020033,2]
[374637692,1753391454415,-151.0,0.00020033,2]
[374637693,1753391454425,-151.0,0.00020033,2]
[374637694,1753391454434,-151.0,0.00020033,2]
[374637695,1753391454444,-151.0,0.00020033,2]
[374637696,1753391454454,-151.0,0.00020033,2]
[374637697,1753391454463,-151.0,0.00020033,2]
[374637698,1753391454472,-151.0,0.00020033,2]
[374637699,1753391454484,-151.0,0.00020033,2]
[374637700,1753391454494,-151.0,0.00020033,2]
[374637701,1753391454503,-151.0,0.00020033,2]
[374637702,1753391454513,-151.0,0.00020033,2]
[374637703,1753391454524,-151.0,0.00020033,2]
[374637704,1753391454534,-151.0,0.00020033,2]
[374637705,1753391454543,-151.0,0.00020033,2]
[374637706,1753391454553,-151.0,0.00020033,2]
[374637707,1753391454563,-151.0,0.00020033,2]
[374637708,1753391454572,-151.0,0.00020033,2]
[374637709,1753391454582,-151.0,0.00020033,2]
[374637710,1753391454591,-151.0,0.00020033,2]
[374637711,1753391454601,-6270.21777562,0.00020033,2]
[374637712,1753391510396,413.346979,0.00018718,2]
[374637713,1753391587626,164.2246041,0.00018529,2]
[374637716,1753392063687,2506.16535349,0.00018921,2]
[374637717,1753392066549,5638.87204535,0.00018921,2]
[374637718,1753392068893,5484.71277358,0.00018921,2]
[374637719,1753392068916,4529.92397895,0.00018921,2]
[374637721,1753392404905,207.59440034,0.00018971,3]
[374637722,1753392409897,207.59440034,0.00018972,3]
[374637723,1753392412025,24900.0,0.00018154,2]
[374637724,1753392425323,154.88722037,0.00019,2]
[374637725,1753392425346,4845.11277963,0.00019,2]
[374637726,1753392426142,-168.31313093,0.00019069,2]
[374637727,1753392426165,-168.31313092,0.00019072,2]
[374637728,1753392426187,-178.16929021,0.00019073,2]
[374637729,1753392426209,-168.31313092,0.00019075,2]
[374637730,1753392426231,-168.31313092,0.00019078,2]
[374637731,1753392426252,-201.29,0.00019124,2]
[374637732,1753392426275,-289.75,0.00019168,3]
[374637733,1753392426297,-869.29,0.00019168,3]
[374637734,1753392426318,-1200.0,0.00019169,2]
[374637735,1753392426340,-300.0,0.00019169,2]
[374637736,1753392426362,-157.65270692,0.0001917,2]
[374637737,1753392430091,-142.34729308,0.0001917,2]
[374637738,1753392430118,-223.0,0.0001917,2]
[374637739,1753392430144,-300.0,0.0001917,2]
[374637740,1753392430172,-37.78304678,0.0001917,2]
[374637741,1753392441128,5000.0,0.00019,2]
[374637742,1753392443138,-807.62636638,0.0001917,2]
[374637744,1753392454722,294.676128,0.00013699,2]
[374637795,1753392632171,-299.42677072,0.00019168,2]
[374637796,1753392632182,-0.57322928,0.00019168,2]
[374637798,1753392632192,-300.0,0.00019168,2]
[374637799,1753392632202,-300.0,0.00019168,2]
[374637800,1753392632212,-300.0,0.00019168,2]
[374637801,1753392632222,-800.96736571,0.00019168,2]
[374637819,1753392638179,-399.03263429,0.00019168,2]
[374637820,1753392638190,-504.30457904,0.00019173,2]
[374637821,1753392638202,-500.0,0.00019173,2]
[374637822,1753392638214,-500.0,0.00019173,2]
[374637823,1753392638228,-543.98171017,0.00019173,2]
[374637824,1753392638240,-503.55156825,0.00019173,2]
[374637825,1753392638253,-11945.49195592,0.00019177,2]
[374637862,1753392640566,-2054.69849881,0.00019177,2]
[374637869,1753392640625,-2038.05364534,0.00019177,2]
[374637876,1753392640685,-1312.15337723,0.00019177,2]
[374637879,1753392640701,-714.78080813,0.00019177,2]
[374637882,1753392640715,-881.05,0.00019177,2]
[374637885,1753392640730,-2162.07713982,0.00019177,2]
[374637887,1753392640745,-3567.50906117,0.00019177,2]
[374637967,1753392643160,-233.87785185,0.00019177,2]
[374637968,1753392643170,-236.57772178,0.00019177,2]
[374637969,1753392643180,-156.3750634,0.00019177,2]
[374637970,1753392643190,-500.0,0.00019177,2]
[374637971,1753392643199,-500.0,0.00019177,2]
[374637972,1753392643209,-500.0,0.00019177,2]
[374637973,1753392643218,-500.0,0.00019177,2]
[374637974,1753392643228,-194.01769851,0.00019177,2]
[374637975,1753392643237,-609.40960675,0.00019177,2]
[374637976,1753392643247,-500.0,0.00019177,2]
[374637977,1753392643256,-343.30195142,0.00019177,2]
[374637978,1753392643266,-500.0,0.00019177,2]
[374637979,1753392643275,-500.0,0.00019177,2]
[374637980,1753392643285,-500.0,0.00019177,2]
[374637981,1753392643294,-500.0,0.00019177,2]
[374637982,1753392643304,-173.05396654,0.00019177,2]
[374637983,1753392643356,-326.94603346,0.00019177,2]
[374637984,1753392643366,-86.19414944,0.00019177,2]
[374637994,1753392646207,-413.80585056,0.00019177,2]
[374637995,1753392646217,-375.93301871,0.00019177,2]
[374637996,1753392646227,-500.0,0.00019177,2]
[374637997,1753392646237,-428.32710539,0.00019177,2]
[374637998,1753392646248,-71.67289461,0.00019177,2]
[374637999,1753392646258,-427.92377322,0.00019177,2]
[374638000,1753392646268,-435.93974427,0.00019177,2]
[374638001,1753392646280,-64.06025573,0.00019177,2]
[374638002,1753392646290,-500.0,0.00019177,2]
[374638003,1753392646300,-241.12397214,0.00019177,2]
[374638004,1753392646311,-258.87602786,0.00019177,2]
[374638005,1753392646320,-460.0,0.00019178,2]
[374638006,1753392646330,-460.0,0.00019178,2]
[374638007,1753392646340,-460.0,0.00019178,2]
[374638008,1753392646352,-460.0,0.00019178,2]
[374638009,1753392646362,-460.0,0.00019178,2]
[374638010,1753392646371,-492.12082923,0.00019178,2]
[374638011,1753392646381,-460.0,0.00019178,2]
[374638013,1753392646390,-460.0,0.00019178,2]
[374638014,1753392646400,-460.0,0.00019178,2]
[374638015,1753392646409,-460.0,0.00019178,2]
[374638016,1753392646418,-387.92241901,0.00019178,2]
[374638017,1753392646428,-460.0,0.00019178,2]
[374638018,1753392646437,-460.0,0.00019178,2]
[374638019,1753392646447,-460.0,0.00019178,2]
[374638020,1753392646456,-460.0,0.00019178,2]
[374638021,1753392646466,-460.0,0.00019178,2]
[374638022,1753392646475,-952.45,0.00019178,2]
[374638023,1753392646486,-460.0,0.00019178,2]
[374638024,1753392646495,-460.0,0.00019178,2]
[374638025,1753392646505,-460.0,0.00019178,2]
[374638026,1753392646515,-460.0,0.00019178,2]
[374638027,1753392646525,-460.0,0.00019178,2]
[374638028,1753392646535,-460.0,0.00019178,2]
[374638029,1753392646545,-109.9307239,0.00019178,2]
[374638030,1753392646558,-350.0692761,0.00019178,2]
[374638031,1753392646568,-419.74844633,0.00019178,2]
[374638032,1753392646578,-460.0,0.00019178,2]
[374638033,1753392646588,-460.0,0.00019178,2]
[374638034,1753392646599,-460.0,0.00019178,2]
[374638035,1753392646608,-460.0,0.00019178,2]
[374638036,1753392646618,-460.0,0.00019178,2]
[374638037,1753392646630,-460.0,0.00019178,2]
[374638038,1753392646640,-460.0,0.00019178,2]
[374638039,1753392646649,-460.0,0.00019178,2]
[374638040,1753392646659,-460.0,0.00019178,2]
[374638041,1753392646668,-299.59397316,0.00019178,2]
[374638042,1753392646681,-200.40602684,0.00019178,2]
[374638043,1753392646691,-500.0,0.00019178,2]
[374638044,1753392646701,-460.0,0.00019178,2]
[374638045,1753392646710,-460.0,0.00019178,2]
[374638046,1753392646720,-460.0,0.00019178,2]
[374638047,1753392646729,-485.39,0.00019178,2]
[374638048,1753392646739,-460.0,0.00019178,2]
[374638049,1753392646748,-460.0,0.00019178,2]
[374638050,1753392646758,-460.0,0.00019178,2]
[374638051,1753392646767,-393.29310321,0.00019178,2]
[374638052,1753392646776,-460.0,0.00019178,2]
[374638053,1753392646786,-192.40003544,0.00019178,2]
[374638054,1753392646796,-460.0,0.00019178,2]
[374638055,1753392646806,-178.26838523,0.00019178,2]
[374638056,1753392646815,-460.0,0.00019178,2]
[374638057,1753392646825,-460.0,0.00019178,2]
[374638058,1753392646834,-460.0,0.00019178,2]
[374638059,1753392646844,-460.0,0.00019178,2]
[374638060,1753392646853,-460.0,0.00019178,2]
[374638061,1753392646863,-460.0,0.00019178,2]
[374638062,1753392646873,-460.0,0.00019178,2]
[374638063,1753392646882,-238.51968945,0.00019178,2]
[374638064,1753392646892,-460.0,0.00019178,2]
[374638065,1753392646901,-1297.11,0.00019178,2]
[374638066,1753392646911,-460.0,0.00019178,2]
[374638067,1753392646922,-460.0,0.00019178,2]
[374638068,1753392646932,-460.0,0.00019178,2]
[374638069,1753392646942,-528.84,0.00019178,2]
[374638070,1753392646955,-460.0,0.00019178,2]
[374638071,1753392646965,-460.0,0.00019178,2]
[374638072,1753392646977,-118.96140962,0.00019178,2]
[374638073,1753392646998,-364.28947946,0.00019178,2]
[374638074,1753392647008,-244.6954513,0.00019178,2]
[374638076,1753392862667,2358.07537916,0.00018982,2]
[374638077,1753392951565,206.673489,0.00018128,2]
[374638078,1753393117961,1572.05025278,0.00018978,2]
[374638079,1753393146393,157.96903066,0.00018977,2]
[374638081,1753393335044,157.9690306,0.00018975,2]
[374638082,1753393355623,399.48451574,0.00018978,2]
[374638083,1753393373171,1048.03350184,0.00018978,2]
[374638084,1753393378822,1220.4966429,0.00018221,2]
[374638085,1753393442039,12739.45924969,0.00018076,2]
[374638086,1753393442065,12160.54075031,0.00018076,2]
[374638087,1753393524096,168.21604236,0.00018974,2]
[374638088,1753393574163,3609.07108579,0.00018989,2]
[374638090,1753393595977,279.942321,0.00013699,2]
[374638091,1753393601229,176.51416251,0.00018971,2]
[374638092,1753393628398,698.68900124,0.00018978,2]
[374638093,1753393630123,-579.5,0.00019068,3]
[374638095,1753393630144,-239.26792552,0.00019071,2]
[374638097,1753393653135,-189.93047499,0.00019021,2]
[374638098,1753393653159,-960.73207448,0.00019071,2]
[374638099,1753393653180,-1200.0,0.00019071,2]
[374638100,1753393653201,-300.0,0.00019071,2]
[374638101,1753393653223,-500.0,0.00019072,2]
[374638102,1753393653243,-373.17601295,0.00019072,2]
[374638103,1753393653264,-439.15437012,0.00019072,2]
[374638104,1753393654120,-60.84562988,0.00019072,2]
[374638105,1753393654143,-500.0,0.00019072,2]
[374638106,1753393654166,-156.27791396,0.00019072,2]
[374638107,1753393694979,319.5876126,0.00018978,2]
[374638108,1753393702854,168.21604235,0.00018977,2]
[374638118,1753393826863,176.51416251,0.0001897,2]
[374638159,1753393832372,-440.76393697,0.00019051,2]
[374638161,1753393832382,-300.0,0.0001907,2]
[374638163,1753393832392,-300.0,0.0001907,2]
[374638165,1753393832403,-300.0,0.0001907,2]
[374638167,1753393832415,-43.57508422,0.0001907,2]
[374638174,1753393832501,-256.42491578,0.0001907,2]
[374638176,1753393832522,-300.0,0.0001907,2]
[374638178,1753393832537,-1200.0,0.0001907,2]
[374638180,1753393832546,-300.0,0.00019071,2]
[374638182,1753393832556,-555.51243723,0.00019071,2]
[374638184,1753393832566,-500.0,0.00019071,2]
[374638186,1753393832575,-500.0,0.00019071,2]
[374638188,1753393832585,-500.0,0.00019071,2]
[374638190,1753393832594,-500.0,0.00019071,2]
[374638192,1753393832604,-500.0,0.00019071,2]
[374638194,1753393832614,-500.0,0.00019071,2]
[374638196,1753393832624,-500.0,0.00019071,2]
[374638198,1753393832634,-500.0,0.00019071,2]
[374638200,1753393832643,-437.9470756,0.00019071,2]
[374638202,1753393832652,-500.0,0.00019071,2]
[374638204,1753393832664,-500.0,0.00019071,2]
[374638206,1753393832674,-500.0,0.00019071,2]
[374638208,1753393832684,-590.18660374,0.00019071,2]
[374638210,1753393832694,-500.0,0.00019071,2]
[374638212,1753393832704,-218.93133388,0.00019071,2]
[374638214,1753393832713,-500.0,0.00019071,2]
[374638216,1753393832723,-368.21475368,0.00019071,2]
[374638218,1753393832735,-500.0,0.00019071,2]
[374638220,1753393832744,-500.0,0.00019071,2]
[374638223,1753393832754,-500.0,0.00019071,2]
[374638225,1753393832763,-500.0,0.00019071,2]
[374638227,1753393832773,-500.0,0.00019071,2]
[374638229,1753393832782,-500.0,0.00019071,2]
[374638231,1753393832792,-91.36475492,0.00019071,2]
[374638295,1753393838380,-408.63524508,0.00019071,2]
[374638296,1753393838390,-23094.39634908,0.00019072,2]
[374638297,1753393838400,-165.60440525,0.00019077,2]
[374638298,1753393838410,-1631.49596316,0.00019078,2]